bitfinex/quotes_ETHUSD_20240824
["timestamp","ask_amount","ask_price","bid_price","bid_amount"]
[1724513916514,0.07924941,2766.1,2765.7,1.50055988]
[1724513916706,2.4935,2766.0,2765.7,3.61564]
[1724513917014,0.0792612,2765.9,2765.7,3.61564]
[1724513918413,0.0792612,2765.9,2765.5,6.6159]
[1724513918978,2.4935,2766.0,2765.5,6.6159]
[1724513919175,0.07924013,2765.8,2765.5,8.51081971]
[1724513919416,2.4935,2766.0,2765.5,8.51081971]
[1724513919417,0.0792612,2765.9,2765.5,8.51081971]
[1724513919583,0.07921905,2765.7,2765.5,8.51081971]
[1724513919784,2.4935,2766.0,2765.5,8.51081971]
[1724513920006,0.07919798,2765.6,2765.5,8.51081971]
[1724513920185,2.4935,2765.9,2765.5,3.0]
[1724513920392,0.07919798,2765.6,2765.5,3.0]
[1724513920591,2.4935,2765.9,2765.5,3.0]
[1724513920992,0.07921069,2765.8,2765.5,3.0]
[1724513921203,0.07921069,2765.8,2765.5,6.61597]
[1724513921620,0.07921069,2765.8,2765.5,10.23184]
[1724513921781,0.07921069,2765.8,2765.6,1.14989571]
[1724513921981,2.4935,2765.9,2765.6,1.14989571]
[1724513922420,2.4935,2765.9,2765.6,4.76573571]
[1724513926239,2.4935,2765.9,2765.7,3.61572]
[1724513926801,0.07923362,2765.8,2765.7,3.61572]
[1724513931746,2.4935,2765.9,2765.7,3.61572]
[1724513932319,0.07738445,2765.8,2765.7,3.61572]
[1724513937030,0.07738445,2765.8,2765.7,7.23144]
[1724513937339,2.3191,2766.1,2765.9,3.6154]
[1724513937567,0.07743242,2766.0,2765.9,3.6154]
[1724513939151,0.00068287,2766.2,2766.0,3.61529]
[1724513939385,0.07745349,2766.1,2766.0,3.61529]
[1724513946273,0.07745349,2766.1,2765.8,7.23104]
[1724513946573,0.07745349,2766.1,2765.8,3.61547]
[1724513946873,0.07745349,2766.1,2765.6,11.06578]
[1724513946874,2.4844,2766.0,2765.6,11.06578]
[1724513947628,2.4844,2766.0,2765.6,11.06574]
[1724513947826,2.4844,2766.0,2765.7,3.61567]
[1724513947972,0.07749469,2765.9,2765.7,3.61567]
[1724513948796,0.07749469,2765.9,2765.8,3.61559]
[1724513949006,0.00068287,2766.2,2765.9,3.6154]
[1724513949513,0.07750253,2766.1,2765.9,3.6154]
[1724513953095,0.07750253,2766.1,2765.6,7.45]
[1724513953096,0.07750253,2766.1,2766.0,3.61532]
[1724513953275,0.07750253,2766.1,2766.0,7.23064]
[1724513953476,0.00068287,2766.2,2766.1,3.61519]
[1724513953876,0.07842704,2766.2,2766.1,3.61519]
[1724513954076,0.00068287,2766.2,2766.1,3.61519]
[1724513954277,0.07842704,2766.2,2766.1,3.61519]
[1724513956454,0.07842704,2766.2,2766.0,3.61532]
[1724513960304,0.07842704,2766.2,2765.8,3.61553]
[1724513960510,2.4164,2766.1,2765.6,11.06577]
[1724513960740,2.4164,2766.1,2765.7,1.25710441]
[1724513961045,2.4164,2766.1,2765.6,14.68154]
[1724513961547,0.07511342,2766.0,2765.7,3.6157]
[1724513961842,2.4164,2766.1,2765.7,3.6157]
[1724513962009,0.07509235,2765.9,2765.7,3.6157]
[1724513962209,2.4164,2766.1,2765.7,3.6157]
[1724513962416,0.07507128,2765.8,2765.6,11.06577]
[1724513962613,2.4164,2766.1,2765.6,11.06577]
[1724513963249,2.4164,2766.1,2765.6,7.23154]
[1724513963547,2.4164,2766.1,2765.6,3.61577]
[1724513963749,2.4164,2766.1,2765.7,3.61564]
[1724513963953,0.07511342,2766.0,2765.7,3.61564]
[1724513965251,0.07511342,2766.0,2765.8,3.61557]
[1724513965410,0.07511342,2766.0,2765.9,7.30320721]
[1724513965612,0.07511342,2766.0,2765.9,18.02941278]
[1724513965850,0.00068287,2766.2,2766.1,7.23038]
[1724513966151,0.00068287,2766.2,2766.1,9.75455891]
[1724513966312,0.00068287,2766.2,2766.1,11.95728442]
[1724513966512,0.00068287,2766.2,2766.1,17.79758156]
[1724513966713,0.00068287,2766.2,2766.1,22.68324434]
[1724513966938,0.00068287,2766.2,2766.1,22.68267807]
[1724513970468,0.00068287,2766.2,2766.1,27.04902157]
[1724513970622,0.00068287,2766.2,2766.1,27.59902157]
[1724513970985,0.00068287,2766.2,2766.1,26.84776678]
[1724513971763,0.00068287,2766.2,2766.1,27.60347108]
[1724513972498,2.3283,2767.1,2767.0,3.61402]
[1724513972830,2.4004932,2767.1,2767.0,3.61402]
[1724513973137,0.0721932,2767.1,2767.0,3.61402]
[1724513973667,2.3283,2767.3,2767.1,3.61388]
[1724513974769,2.3283,2767.3,2766.9,3.61406]
[1724513974950,2.3283,2767.3,2767.0,3.61399]
[1724513975357,2.3283,2767.3,2766.9,3.61406]
[1724513975574,2.3283,2767.3,2766.7,7.22866]
[1724513975732,2.3283,2767.3,2766.8,3.61423]
[1724513977375,0.07230238,2767.2,2766.8,3.61423]
[1724513977537,2.3283,2767.3,2766.9,3.61413]
[1724513977737,0.07196446,2767.2,2766.9,3.61413]
[1724513977965,2.3283,2767.3,2766.9,3.61413]
[1724513978239,0.07192894,2767.2,2766.9,3.61413]
[1724513978440,0.07192894,2767.2,2766.9,4.62314348]
[1724513978784,0.07193516,2767.1,2766.9,4.62314348]
[1724513978978,2.3283,2767.3,2766.9,4.62314348]
[1724513979140,0.07166872,2767.2,2766.9,4.62314348]
[1724513979465,2.3283,2767.3,2766.9,4.62314348]
[1724513979632,0.07164767,2767.1,2766.9,4.62314348]
[1724513979836,2.3283,2767.3,2766.9,4.62314348]
[1724513980049,0.07148302,2767.0,2766.9,4.62314348]
[1724513980251,2.3283,2767.3,2766.9,4.62314348]
[1724513980459,0.07168386,2767.0,2766.9,4.62314348]
[1724513980662,2.3283,2767.3,2766.9,4.62308348]
[1724513980858,0.07167896,2767.0,2766.9,4.62308348]
[1724513981064,2.3283,2767.3,2766.9,4.62308348]
[1724513981249,0.0714617,2767.0,2766.9,4.62308348]
[1724513981432,2.3283,2767.3,2766.9,4.62308348]
[1724513981639,0.0714617,2767.0,2766.9,8.23723348]
[1724513981840,2.3283,2767.3,2767.1,3.61379]
[1724513982046,2.3283,2767.3,2767.1,7.22759]
[1724513982277,0.07136502,2767.2,2767.1,3.61379]
[1724513982598,2.3283,2767.3,2767.1,3.61379]
[1724513982824,0.07122127,2767.2,2767.1,4.56419106]
[1724513983172,2.3283,2767.3,2767.1,0.95040106]
[1724513983369,0.07122127,2767.2,2766.9,3.61406]
[1724513983682,2.3283,2767.3,2767.0,3.61402]
[1724513983883,0.07120022,2767.1,2767.0,3.61402]
[1724513984083,2.3283,2767.3,2767.0,3.61402]
[1724513984606,0.07122127,2767.2,2767.0,3.61402]
[1724513984921,0.07122127,2767.2,2767.1,0.84951971]
[1724513985089,2.3283,2767.3,2767.1,0.84951971]
[1724513985289,0.07122127,2767.2,2767.1,0.84951971]
[1724513985625,2.3283,2767.3,2767.1,0.84951971]
[1724513985931,0.07122127,2767.2,2767.1,0.84951971]
[1724513986310,2.3283,2767.3,2767.1,0.84951971]
[1724513986592,0.07085435,2767.2,2767.1,0.84951971]
[1724513986795,2.3283,2767.3,2767.1,0.84951971]
[1724513987128,0.07085435,2767.2,2767.1,4.46340971]
[1724513987581,2.3283,2767.3,2767.1,4.46340971]
[1724513987745,0.07089843,2767.2,2767.1,4.46340971]
[1724513988038,2.3283,2767.3,2767.1,4.46340971]
[1724513988328,0.07089843,2767.2,2767.1,4.46340971]
[1724513988856,0.07061094,2767.2,2767.1,4.46340971]
[1724513989301,2.3283,2767.3,2767.1,4.46340971]
[1724513989638,0.07062073,2767.2,2767.1,4.46340971]
[1724513990088,2.3399,2767.5,2767.1,4.46340971]
[1724513990284,0.07062073,2767.2,2767.1,4.46340971]
[1724513990521,2.3399,2767.5,2767.1,4.46340971]
[1724513990719,2.3399,2767.5,2767.2,3.61368]
[1724513991723,0.07036412,2767.4,2767.2,3.61368]
[1724513991928,0.07036412,2767.4,2767.2,8.03507097]
[1724513993411,0.07036412,2767.4,2767.3,3.61363]
[1724513995234,0.07036412,2767.4,2767.2,4.42147097]
[1724513995608,2.3399,2767.5,2767.2,4.42147097]
[1724513995809,0.07020646,2767.4,2767.2,4.42147097]
[1724513998058,2.3399,2767.5,2767.2,4.42147097]
[1724513998437,0.06988273,2767.4,2767.2,4.42147097]
[1724513998812,0.06988273,2767.4,2767.2,3.61375]
[1724513999047,0.06988273,2767.4,2767.0,3.61398]
[1724513999048,2.4999,2767.3,2767.0,7.22788]
[1724513999260,2.4999,2767.3,2767.1,6.61384]
[1724513999409,0.06983024,2767.2,2767.1,6.61384]
[1724513999761,2.4999,2767.3,2767.2,3.61376]
[1724514000819,2.4999,2767.5,2767.3,3.6136]
[1724514001030,1.26711711,2767.4,2767.1,6.61379]
[1724514001207,1.26711711,2767.4,2767.2,3.61375]
[1724514001410,2.4999,2767.5,2767.2,3.61375]
[1724514002012,2.4999,2767.5,2767.3,3.61361]
[1724514002619,2.4999,2767.5,2767.3,7.22715]
[1724514003029,0.06984297,2767.4,2767.3,7.22715]
[1724514004913,2.4999,2767.7,2767.5,3.6133]
[1724514006734,0.06987525,2767.6,2767.5,3.6133]
[1724514008324,0.06987525,2767.6,2767.5,7.22666]
[1724514010393,2.3708,2767.5,2767.1,3.0]
[1724514010540,1.26711711,2767.2,2766.8,3.61427]
[1724514010731,1.26711711,2767.3,2766.8,3.61427]
[1724514011060,2.3708,2767.0,2766.7,3.6144]
[1724514011244,2.3708,2767.0,2766.7,4.72084]
[1724514011826,2.3708,2767.0,2766.7,1.10644]
[1724514012030,2.3708,2767.0,2766.7,4.72082]
[1724514012354,2.3708,2767.0,2766.5,11.06466]
[1724514012776,2.3708,2767.0,2766.6,3.0]
[1724514013426,1.26711711,2767.3,2766.8,3.61426]
[1724514013659,3.63791711,2767.3,2766.6,9.03574]
[1724514013804,1.26711711,2766.7,2766.2,3.61505]
[1724514014141,1.26711711,2766.5,2766.0,11.06531]
[1724514014488,0.06248892,2766.4,2766.0,11.06531]
[1724514015519,0.06248892,2766.4,2766.1,3.0]
[1724514015781,3.63791711,2766.3,2766.1,3.0]
[1724514015982,3.63791711,2766.3,2766.0,7.45]
[1724514016193,0.06220462,2766.2,2766.0,7.45]
[1724514016553,3.63791711,2766.3,2766.0,7.45]
[1724514017158,2.3708,2765.8,2765.0,4.74960606]
[1724514017450,1.26711711,2765.3,2764.9,3.61669]
[1724514017587,3.67241711,2765.3,2764.9,3.61669]
[1724514017935,0.05944496,2765.2,2764.9,4.723359]
[1724514018081,0.05944496,2765.2,2765.0,3.61662]
[1724514018280,1.26711711,2765.5,2765.0,3.61662]
[1724514018693,0.05946753,2765.4,2765.0,3.61662]
[1724514019830,1.26711711,2765.6,2765.0,3.61662]
[1724514020040,0.05874,2765.5,2765.0,3.61662]
[1724514020382,0.05874,2765.5,2765.0,4.21566061]
[1724514020519,0.05874,2765.5,2765.0,3.61662]
[1724514020922,3.61577,2765.7,2765.0,3.61662]
[1724514021430,0.05874142,2765.6,2765.0,3.61662]
[1724514022690,6.02039,2766.2,2765.4,3.616]
[1724514022893,3.83641382,2766.2,2765.6,3.61583]
[1724514023126,2.4053,2766.2,2765.6,3.61583]
[1724514024235,3.97876171,2766.3,2765.1,11.0665]
[1724514024236,3.61566,2765.8,2765.1,11.0665]
[1724514024451,6.02113,2765.7,2765.1,7.45]
[1724514025240,0.05782606,2765.6,2765.1,7.45]
[1724514025392,0.05782606,2765.6,2765.0,3.61661]
[1724514025599,0.05782606,2765.6,2765.1,6.61649]
[1724514026596,0.05782606,2765.6,2765.1,3.0]
[1724514026815,2.4053,2765.5,2764.9,3.61675]
[1724514027039,0.05764881,2765.4,2764.9,3.61675]
[1724514028375,0.66553869,2765.4,2764.7,11.06701]
[1724514028652,0.66553869,2765.4,2764.4,12.29]
[1724514028653,3.61691,2764.8,2764.4,12.29]
[1724514028868,2.2947,2764.7,2764.3,0.00365769]
[1724514029025,0.05741104,2764.7,2764.3,0.36580246]
[1724514029226,2.2947,2765.0,2764.3,0.00365769]
[1724514029570,0.05545549,2764.9,2764.3,0.00365769]
[1724514030663,0.05545549,2764.9,2764.3,3.00365769]
[1724514031239,2.2947,2764.8,2764.3,0.00365769]
[1724514031416,5.91212,2764.4,2764.3,0.00365769]
[1724514031656,16.24363308,2764.4,2764.3,0.00365769]
[1724514031856,13.17621308,2764.4,2764.3,0.00365769]
[1724514032111,13.21319477,2764.4,2764.3,0.00365769]
[1724514033108,16.83061477,2764.4,2764.3,0.00365769]
[1724514033278,18.51367625,2764.4,2764.3,0.00365769]
[1724514033487,14.89625625,2764.4,2764.3,0.00365769]
[1724514039446,18.51367625,2764.4,2764.3,0.00365769]
[1724514039994,14.89625625,2764.4,2764.3,0.00365769]
[1724514041457,18.51367625,2764.4,2764.3,0.00365769]
[1724514041644,14.89625625,2764.4,2764.3,0.00365769]
[1724514041990,18.51367625,2764.4,2764.3,0.00365769]
[1724514043436,22.13109625,2764.4,2764.3,7.69e-06]
[1724514043755,18.51367625,2764.4,2764.3,7.69e-06]
[1724514045653,22.13109625,2764.4,2764.3,7.69e-06]
[1724514046619,17.96367625,2764.4,2764.3,7.69e-06]
[1724514047846,18.51367625,2764.4,2764.3,7.69e-06]
[1724514048271,11.30485054,2764.4,2764.3,7.69e-06]
[1724514048436,3.70966906,2764.4,2764.3,7.69e-06]
[1724514050272,7.32708906,2764.4,2764.3,7.69e-06]
[1724514055651,3.70966906,2764.4,2764.3,7.69e-06]
[1724514055979,0.09224906,2764.4,2764.3,7.69e-06]
[1724514056336,3.61717,2764.6,2764.3,7.69e-06]
[1724514056570,0.08627913,2764.4,2764.3,7.69e-06]
[1724514056776,8.92985571,2764.8,2764.3,7.69e-06]
[1724514056777,3.61695,2764.8,2764.3,7.69e-06]
[1724514056988,0.08627913,2764.4,2764.3,7.69e-06]
[1724514057150,7.23396,2764.8,2764.3,7.69e-06]
[1724514057151,3.61695,2764.8,2764.3,0.36178746]
[1724514057548,3.61669,2765.0,2764.4,3.6174]
[1724514057696,0.0866319,2764.7,2764.4,3.6174]
[1724514057859,3.61669,2765.0,2764.4,3.6174]
[1724514058068,0.08653675,2764.9,2764.5,0.63676875]
[1724514058476,0.08653675,2764.9,2764.6,2.3885]
[1724514058804,3.61642,2765.2,2764.6,2.3885]
[1724514059871,0.08708611,2765.1,2764.6,2.3885]
[1724514060225,3.61673,2765.0,2764.6,2.3885]
[1724514060598,0.08714362,2764.9,2764.6,2.3885]
[1724514061408,3.70393362,2764.9,2764.3,2.75028746]
[1724514061697,0.08714362,2764.9,2764.3,3.77029944]
[1724514062255,3.70391362,2764.9,2764.3,3.77029944]
[1724514062677,3.61702,2764.8,2764.3,3.77029944]
[1724514063088,0.08705365,2764.7,2764.3,3.77029944]
[1724514063571,3.61702,2764.8,2764.3,3.77029944]
[1724514063774,0.08704243,2764.6,2764.3,3.77029944]
[1724514063974,0.08705365,2764.7,2764.3,3.77029944]
[1724514064194,0.08701418,2764.5,2764.3,3.77029944]
[1724514064368,3.61702,2764.8,2764.3,3.77029175]
[1724514064570,3.61702,2764.8,2764.1,7.45]
[1724514064572,0.08700296,2764.4,2764.1,7.45]
[1724514064770,3.61702,2764.8,2764.2,3.0]
[1724514065171,0.08706217,2764.7,2764.2,3.0]
[1724514065934,3.70409217,2764.7,2764.2,3.0]
[1724514066075,3.61718,2764.6,2764.1,7.45]
[1724514066470,0.08698961,2764.5,2764.1,7.45]
[1724514066678,0.08698961,2764.5,2764.1,9.095633]
[1724514067282,7.23399,2764.8,2764.1,5.263423]
[1724514067484,0.08696987,2764.4,2764.1,5.263423]
[1724514067687,7.23399,2764.8,2764.1,5.263423]
[1724514067898,0.08695013,2764.3,2764.1,5.263423]
[1724514068105,3.61705,2764.7,2764.1,1.645633]
[1724514068317,3.61705,2764.7,2764.1,4.645633]
[1724514068491,3.70421935,2764.6,2764.1,3.0]
[1724514069210,0.08700935,2764.6,2763.6,6.03786]
[1724514069566,3.6177,2764.2,2763.6,6.03786]
[1724514070019,0.08690637,2764.1,2763.6,6.03786]
[1724514070371,3.6177,2764.2,2763.6,6.03786]
[1724514070687,0.08692341,2764.1,2763.6,6.03786]
[1724514071519,0.08692341,2764.1,2763.4,7.23738]
[1724514071690,0.08692341,2764.1,2763.5,3.61858]
[1724514072375,3.61797,2764.0,2763.4,3.61869]
[1724514072768,0.08673617,2763.9,2763.4,3.61869]
[1724514073068,0.08667605,2763.9,2763.4,3.61869]
[1724514073511,0.08667605,2763.9,2763.4,3.61863]
[1724514073674,0.08667605,2763.9,2763.7,3.61825]
[1724514073881,3.61743,2764.4,2763.8,0.361825]
[1724514074479,3.70236588,2764.3,2763.8,0.361825]
[1724514075203,3.61768,2764.2,2763.5,3.61851]
[1724514075619,0.08412455,2764.1,2763.5,3.61851]
[1724514075920,0.08412455,2764.1,2763.6,3.61841]
[1724514076113,0.08412455,2764.1,2763.8,6.0376]
[1724514076422,3.61743,2764.4,2763.6,3.61835]
[1724514076423,3.61757,2764.3,2763.6,3.61835]
[1724514076603,3.61757,2764.3,2763.7,0.603775]
[1724514076805,0.08412954,2764.2,2763.7,4.222025]
[1724514077223,0.08412954,2764.2,2763.8,3.6182]
[1724514077581,2.4072,2764.5,2763.8,3.6182]
[1724514077780,0.0841098,2764.1,2764.0,6.03724]
[1724514078040,3.61707,2764.7,2764.1,3.61777]
[1724514078220,3.6167,2765.0,2764.2,3.61765]
[1724514078535,3.6167,2765.0,2763.9,7.8721975]
[1724514078536,3.61652,2765.1,2764.5,6.03669]
[1724514078744,3.61652,2765.1,2764.5,2.4194]
[1724514078950,7.23312,2765.1,2764.5,3.023074]
[1724514079238,3.61652,2765.1,2764.5,3.023074]
[1724514079383,7.23312,2765.1,2764.5,3.023074]
[1724514079782,3.61665,2765.0,2764.5,3.023074]
[1724514080210,3.61677,2764.9,2764.5,0.603674]
[1724514080406,3.61711,2764.7,2764.2,2.4194]
[1724514080605,3.61711,2764.7,2764.2,5.4194]
[1724514081007,3.61711,2764.7,2764.2,3.0]
[1724514081330,3.61711,2764.7,2764.1,3.0]
[1724514081503,3.61711,2764.7,2764.1,4.69095275]
[1724514081890,3.61735,2764.5,2764.1,3.0]
[1724514082090,3.70177295,2764.6,2764.0,3.0]
[1724514082295,0.08449348,2764.4,2764.0,3.0]
[1724514082527,3.61724,2764.6,2764.0,3.0]
[1724514082724,0.08447374,2764.3,2764.0,3.0]
[1724514083044,0.08447374,2764.3,2764.1,0.94596575]
[1724514083340,0.084454,2764.2,2764.1,0.94596575]
[1724514083640,3.61724,2764.6,2764.0,3.0]
[1724514083641,3.61732,2764.5,2764.0,3.0]
[1724514083934,0.08449348,2764.4,2763.9,7.0401775]
[1724514084145,3.61724,2764.6,2763.9,7.0401775]
[1724514084352,0.08447374,2764.3,2763.9,7.0401775]
[1724514084509,3.61724,2764.6,2763.9,7.0401775]
[1724514084711,0.084454,2764.2,2764.0,3.6179]
[1724514085045,3.61724,2764.6,2764.1,3.0]
[1724514085466,0.08451322,2764.5,2764.1,3.0]
[1724514085619,3.70182322,2764.5,2763.8,3.61812]
[1724514085941,0.08451322,2764.5,2763.9,3.61804]
[1724514086937,6.02462,2764.4,2763.8,3.61812]
[1724514087139,6.10911781,2764.4,2763.8,3.61812]
[1724514087338,9.72664781,2764.4,2763.8,3.61812]
[1724514087540,9.72664781,2764.4,2763.6,23.35842]
[1724514087541,3.61769,2764.2,2763.6,3.61839]
[1724514087855,0.08435333,2764.3,2763.6,4.642066]
[1724514088153,0.0842342,2764.2,2763.7,3.61826]
[1724514088456,6.02462,2764.4,2763.7,3.61826]
[1724514088806,0.08426246,2764.3,2763.7,3.61826]
[1724514089065,0.08426246,2764.3,2763.8,3.61819]
[1724514089212,0.08426246,2764.3,2763.8,4.4442156]
[1724514091325,0.08426246,2764.3,2763.8,3.61819]
[1724514091733,3.70183246,2764.3,2763.6,8.260456]
[1724514091952,3.70183246,2764.3,2763.6,4.642066]
[1724514092355,0.08426246,2764.3,2763.7,3.61825]
[1724514095314,3.70183246,2764.3,2763.7,3.61825]
[1724514095851,0.08426246,2764.3,2763.7,3.61825]
[1724514096060,0.08426246,2764.3,2763.7,4.4443016]
[1724514097559,0.08426246,2764.3,2763.7,0.8260516]
[1724514097873,0.08426246,2764.3,2763.9,3.61796]
[1724514098184,3.61722,2764.6,2764.0,3.61793]
[1724514098316,0.0842777,2764.2,2764.0,3.61793]
[1724514098516,3.61722,2764.6,2764.0,3.61793]
[1724514098759,0.08425129,2764.1,2764.0,3.61793]
[1724514098912,3.61722,2764.6,2764.0,3.61793]
[1724514098913,3.61722,2764.6,2764.0,4.218183]
[1724514099118,5.89584,2764.8,2764.1,3.6178]
[1724514099363,3.61703,2764.7,2764.1,3.6178]
[1724514099538,3.61703,2764.7,2764.0,4.218183]
[1724514099740,3.61703,2764.7,2764.0,7.836033]
[1724514100554,5.89584,2764.8,2764.1,4.4013133]
[1724514101127,2.2789,2764.8,2764.3,3.61754]
[1724514101357,5.89533,2765.2,2764.5,3.61728]
[1724514101749,0.0846843,2765.1,2764.5,3.61728]
[1724514101947,0.0846843,2765.1,2764.5,4.5792]
[1724514102422,0.0846843,2765.1,2764.5,0.96192]
[1724514102763,3.61677,2764.9,2764.3,3.61754]
[1724514102965,3.61675,2765.0,2764.3,3.61754]
[1724514103185,7.23349,2765.0,2764.3,3.61754]
[1724514103884,3.61679,2764.9,2764.3,3.61754]
[1724514105448,0.08495589,2764.8,2764.3,3.61754]
[1724514106996,3.61708,2764.7,2764.1,6.7859333]
[1724514107190,5.89598,2764.7,2764.2,3.0]
[1724514107499,0.08491642,2764.6,2764.2,3.0]
[1724514107701,0.08491642,2764.6,2763.7,3.61823]
[1724514107881,3.61752,2764.4,2763.7,3.61823]
[1724514108085,3.61757,2764.3,2763.7,3.61823]
[1724514108287,2.4134,2764.2,2763.7,3.61823]
[1724514108510,0.08480315,2764.3,2763.8,3.6182]
[1724514108817,0.08476367,2764.1,2763.8,3.6182]
[1724514109026,0.08478341,2764.2,2763.9,3.61805]
[1724514109194,3.6171,2764.7,2763.9,6.11285]
[1724514109195,0.08474392,2764.0,2763.9,6.11285]
[1724514109360,2.4134,2764.7,2763.9,7.20213509]
[1724514109561,6.03043,2764.7,2764.1,3.6178]
[1724514112387,3.61716,2764.6,2763.9,7.20213509]
[1724514112595,0.08479934,2764.5,2763.9,7.20213509]
[1724514113295,0.08479934,2764.5,2763.9,4.70733509]
[1724514113494,0.08479934,2764.5,2764.0,3.61794]
[1724514113910,0.08479934,2764.5,2763.9,4.70733509]
[1724514114988,0.08479934,2764.5,2764.2,3.61758]
[1724514115203,2.4134,2764.7,2764.3,3.61754]
[1724514115407,0.08441775,2764.6,2764.3,3.61754]
[1724514115811,2.4134,2764.9,2764.3,3.61754]
[1724514116118,3.6168,2764.9,2764.4,0.361754]
[1724514116331,0.08435278,2764.8,2764.5,3.61727]
[1724514116480,0.08435278,2764.8,2764.5,7.23445]
[1724514116675,9.7734,2765.3,2764.7,3.61702]
[1724514116905,6.02965,2765.3,2764.7,3.61702]
[1724514118425,6.02965,2765.3,2764.5,6.11198]
[1724514118625,3.61639,2765.2,2764.6,3.61712]
[1724514119109,2.4134,2765.3,2764.7,3.617]
[1724514119706,0.08464203,2765.2,2764.8,3.61688]
[1724514120011,2.4134,2765.3,2764.8,3.61688]
[1724514120203,0.08464203,2765.2,2764.8,3.61688]
[1724514120410,2.4134,2765.3,2764.8,0.723388]
[1724514120608,0.08464203,2765.2,2764.8,0.723388]
[1724514120804,2.4134,2765.3,2764.8,0.723388]
[1724514121020,0.08464203,2765.2,2764.8,0.723388]
[1724514121256,2.4134,2765.3,2764.8,0.723388]
[1724514121476,0.0846223,2765.1,2764.8,0.723388]
[1724514121662,0.08464203,2765.2,2764.8,0.723388]
[1724514121844,2.4134,2765.3,2764.8,0.723388]
[1724514122149,0.08464203,2765.2,2764.8,0.723388]
[1724514122313,0.08464203,2765.2,2764.7,3.617]
[1724514122515,2.4134,2765.3,2764.7,3.617]
[1724514122715,0.0846223,2765.1,2764.7,3.617]
[1724514122938,0.08484843,2765.2,2764.7,3.617]
[1724514123248,3.6165,2765.1,2764.5,5.3713624]
[1724514123455,0.0848287,2765.1,2764.6,3.0]
[1724514123652,3.61647,2765.2,2764.6,3.0]
[1724514123850,0.08480898,2765.0,2764.6,3.0]
[1724514124170,3.7014387,2765.1,2764.6,3.0]
[1724514124381,0.08478925,2764.9,2764.6,3.0]
[1724514124656,0.08480898,2765.0,2764.6,4.61831164]
[1724514124814,0.08476951,2764.8,2764.6,4.61831164]
[1724514125015,3.61661,2765.1,2764.6,4.61831164]
[1724514125249,0.08479424,2765.0,2764.6,4.61831164]
[1724514126088,0.08479424,2765.0,2764.6,8.23546164]
[1724514126375,7.23295,2765.2,2764.7,1.18527016]
[1724514126662,0.0847992,2765.1,2764.6,4.61831164]
[1724514127173,3.61664,2765.0,2764.6,4.61831164]
[1724514127370,2.3788,2764.9,2764.5,3.0]
[1724514127530,0.08476996,2764.8,2764.5,3.0]
[1724514128831,0.08476996,2764.8,2764.4,7.45]
[1724514129227,0.08476996,2764.8,2764.4,11.06739]
[1724514129736,0.08476996,2764.8,2764.5,3.61727]
[1724514129965,5.93067,2765.1,2764.5,3.61727]
[1724514130230,0.08454474,2765.0,2764.5,3.61727]
[1724514132763,3.70117474,2765.0,2764.5,3.61727]
[1724514133386,0.08454474,2765.0,2764.5,3.61727]
[1724514134094,0.08454474,2765.0,2764.5,7.23448]
[1724514134265,0.08454474,2765.0,2764.5,4.7278764]
[1724514134591,0.08454474,2765.0,2764.5,4.7278664]
[1724514135190,0.08454474,2765.0,2764.6,3.61715]
[1724514135405,0.08454474,2765.0,2764.7,3.61702]
[1724514135568,5.93043,2765.3,2764.7,3.61702]
[1724514135770,0.08456948,2765.2,2764.7,3.61702]
[1724514136812,3.70100948,2765.2,2764.5,8.3450364]
[1724514136994,3.70100948,2765.2,2764.6,4.45155364]
[1724514137856,3.70100948,2765.2,2764.6,3.61705]
[1724514138058,3.61652,2765.1,2764.4,3.61729]
[1724514138259,7.23314,2765.1,2764.4,3.61729]
[1724514138486,3.70138131,2765.0,2764.4,3.61729]
[1724514138689,3.70138131,2765.0,2764.4,4.581136]
[1724514139283,2.3141,2764.9,2764.4,4.581136]
[1724514139702,0.08391692,2764.8,2764.4,4.581136]
[1724514140083,0.08391692,2764.8,2764.4,0.963846]
[1724514140304,0.08391692,2764.8,2764.3,3.61747]
[1724514142612,0.08391692,2764.8,2764.4,3.61741]
[1724514144135,0.08391692,2764.8,2764.3,3.61747]
[1724514144295,0.08391692,2764.8,2764.3,7.23492]
[1724514145193,0.08391692,2764.8,2764.3,7.2349]
[1724514145531,0.08391692,2764.8,2764.3,5.62631]
[1724514146277,5.93127,2764.6,2764.1,10.45]
[1724514146443,0.08380955,2764.5,2764.1,3.0]
[1724514146889,9.54852,2764.6,2764.0,3.0]
[1724514146890,5.93127,2764.6,2764.0,3.0]
[1724514147094,0.0837898,2764.4,2764.0,3.0]
[1724514147293,0.08380955,2764.5,2764.0,3.0]
[1724514147494,0.08374549,2764.3,2764.0,6.61793]
[1724514147735,0.08376524,2764.4,2764.0,8.386521]
[1724514147916,0.08372575,2764.2,2764.0,8.386521]
[1724514148238,2.3141,2764.6,2764.3,3.6175]
[1724514148728,2.3141,2764.6,2764.2,3.61759]
[1724514148902,2.3141,2764.6,2764.4,3.61737]
[1724514149107,2.3141,2764.6,2764.2,3.61759]
[1724514149305,2.3141,2764.6,2764.2,4.8179751]
[1724514149631,2.3141,2764.6,2764.2,8.4355651]
[1724514149934,2.3141,2764.6,2764.2,8.4355551]
[1724514150532,2.3141,2764.6,2764.2,3.61757]
[1724514151741,2.3141,2764.6,2764.2,7.23518]
[1724514152237,6.06766,2764.9,2764.3,3.61754]
[1724514152441,0.08374646,2764.8,2764.3,3.61754]
[1724514152643,0.08374646,2764.8,2764.2,3.61757]
[1724514152948,0.08374646,2764.8,2764.2,5.0610231]
[1724514153393,0.08374646,2764.8,2764.3,3.61754]
[1724514157343,3.70065646,2764.8,2764.1,3.61771]
[1724514157892,2.4509,2764.7,2764.1,3.61771]
[1724514158134,2.4509,2764.7,2764.1,4.8181271]
[1724514158345,0.08370698,2764.6,2764.1,4.8181271]
[1724514158707,2.4509,2764.7,2764.1,4.8181271]
[1724514159107,0.08370698,2764.6,2764.1,4.8181271]
[1724514159508,2.4509,2764.7,2764.1,4.8181271]
[1724514159718,0.08368724,2764.5,2764.1,1.2004171]
[1724514159951,0.08370698,2764.6,2764.1,1.2004171]
[1724514160155,0.08367677,2764.4,2764.1,1.2004171]